[Event "41st Jacques-Lemans-Open 2022"]
[Site "St. Veit/Glan"]
[Date "2022.07.13"]
[Round "6.6"]
[White "Rogic, Davor"]
[Black "Navaratnam, Rohan Shan Tze"]
[Result "1/2-1/2"]
[ECO "C07"]
[WhiteElo "2474"]
[BlackElo "2071"]
[Annotator "ChessBase"]
[PlyCount "108"]
[EventDate "2022.07.09"]
[EventType "swiss"]
[EventCountry "AUT"]
[SourceTitle "playchess.com"]
[Source "ChessBase"]
[SourceQuality "1"]
[TimeControl "40/5400+30:1800+30"]

1. e4 {[%emt 0:00:10]} e6 {[%emt 0:00:11]} 2. d4 {[%emt 0:00:23]} d5 {[%emt 0:00:05]} 3. Nd2 {[%emt 0:00:27]} c5 {[%emt 0:00:19]} 4. exd5 {[%emt 0:01:06]} Qxd5 {[%emt 0:00:12]} 5. Ngf3 {[%emt 0:00:32]} cxd4 {[%emt 0:00:07]} 6. Bc4 {[%emt 0:00:21]} Qd6 {[%emt 0:00:10]} 7. O-O {[%emt 0:00:15]} Nf6 {[%emt 0:00:09]} 8. Nb3 {[%emt 0:00:34]} Nc6 {[%emt 0:00:10]} 9. Nbxd4 {[%emt 0:00:28]} Nxd4 {[%emt 0:00:10]} 10. Nxd4 {[%emt 0:00:15]} Be7 {[%emt 0:00:12]} 11. c3 {[%emt 0:06:51]} O-O {[%emt 0:01:03]} 12. Qf3 {[%emt 0:03:50]} Qc7 {[%emt 0:00:26]} 13. Bb3 {[%emt 0:01:38]} Bd7 {[%emt 0:11:01]} 14. Bg5 {[%emt 0:06:20]} h6 {[%emt 0:04:14]} 15. Bh4 {[%emt 0:01:26]} Rad8 {[%emt 0:03:37]} 16. Rfe1 {[%emt 0:02:52]} Bc6 {[%emt 0:04:33]} 17. Nxc6 {[%emt 0:08:10]} bxc6 {[%emt 0:02:56]} 18. Rad1 {[%emt 0:00:31]} Rxd1 {[%emt 0:07:06]} 19. Rxd1 {[%emt 0:00:31]} Rd8 {[%emt 0:00:07]} 20. Bg3 {[%emt 0:06:59]} Bd6 {[%emt 0:01:18]} 21. Qd3 {[%emt 0:06:58]} Ne8 {[%emt 0:03:22]} 22. Ba4 {[%emt 0:04:16]} Qc8 {[%emt 0:16:35]} 23. Qc4 {[%emt 0:09:01]} Bxg3 {[%emt 0:02:51]} 24. hxg3 {[%emt 0:00:35]} Rxd1+ {[%emt 0:00:49]} 25. Bxd1 {[%emt 0:00:06]} c5 {[%emt 0:01:39]} 26. Qa4 {[%emt 0:07:31]} Qb8 {[%emt 0:02:50]} 27. Bf3 {[%emt 0:04:14]} Nf6 {[%emt 0:01:26]} 28. b3 {[%emt 0:02:35]} Qc7 {[%emt 0:03:36]} 29. Qc4 {[%emt 0:06:34]} Qe5 {[%emt 0:02:58]} 30. Kh2 {[%emt 0:01:36]} h5 {[%emt 0:04:01]} 31. a4 {[%emt 0:00:55]} g5 {[%emt 0:01:41]} 32. b4 {[%emt 0:02:18]} cxb4 {[%emt 0:02:34]} 33. cxb4 {[%emt 0:00:08]} Qf5 {[%emt 0:06:50]} 34. Qd4 {[%emt 0:02:23]} a6 {[%emt 0:00:14]} 35. b5 {[%emt 0:02:24]} axb5 {[%emt 0:00:33]} 36. axb5 {[%emt 0:00:07]} Ng4+ {[%emt 0:06:46]} 37. Bxg4 {[%emt 0:00:42]} hxg4 {[%emt 0:00:01]} 38. Qb2 {[%emt 0:00:23]} Qh7+ {[%emt 0:02:07]} 39. Kg1 {[%emt 0:00:07]} f5 {[%emt 0:00:02]} 40. Qf6 {[%emt 0:04:16]} Qd7 {[%emt 0:00:02]} 41. b6 {[%emt 0:30:12]} Kh7 {[%emt 0:30:23]} 42. Qe5 {[%emt 0:01:19]} Kg6 {[%emt 0:00:26]} 43. Qc7 {[%emt 0:00:41]} Qd1+ {[%emt 0:05:54]} 44. Kh2 {[%emt 0:00:04]} Qd4 {[%emt 0:00:17]} 45. Qb8 {[%emt 0:01:10]} Qxf2 {[%emt 0:03:35]} 46. Qe8+ {[%emt 0:02:55]} Kf6 {[%emt 0:00:52]} 47. Qd8+ {[%emt 0:00:24]} Kf7 {[%emt 0:01:53]} 48. Qc7+ {[%emt 0:02:44]} Kg6 {[%emt 0:01:22]} 49. Qd6 {[%emt 0:00:00]} f4 {[%emt 0:00:00]} 50. Qxe6+ {[%emt 0:00:00]} Kh5 {[%emt 0:00:00]} 51. Qf7+ {[%emt 0:00:00]} Kh6 {[%emt 0:00:00]} 52. Qf6+ {[%emt 0:00:00]} Kh5 {[%emt 0:00:00]} 53. Qf7+ {[%emt 0:00:00]} Kh6 {[%emt 0:00:00]} 54. Qf6+ {[%emt 0:00:00]} Kh5 {[%emt 0:00:00]} 1/2-1/2

[Event "41st Jacques-Lemans-Open 2022"]
[Site "St. Veit/Glan"]
[Date "2022.07.13"]
[Round "6.7"]
[White "Schwab, Lukas"]
[Black "Schernthaner, David"]
[Result "1/2-1/2"]
[ECO "C07"]
[WhiteElo "2166"]
[BlackElo "2319"]
[Annotator "ChessBase"]
[PlyCount "44"]
[EventDate "2022.07.09"]
[EventType "swiss"]
[EventCountry "AUT"]
[SourceTitle "playchess.com"]
[Source "ChessBase"]
[SourceQuality "1"]
[TimeControl "40/5400+30:1800+30"]

1. e4 {[%emt 0:00:04]} e6 {[%emt 0:00:04]} 2. d4 {[%emt 0:00:06]} d5 {[%emt 0:00:03]} 3. Nd2 {[%emt 0:00:20]} c5 {[%emt 0:00:15]} 4. exd5 {[%emt 0:00:41]} Qxd5 {[%emt 0:00:07]} 5. Ngf3 {[%emt 0:01:06]} cxd4 {[%emt 0:00:07]} 6. Bc4 {[%emt 0:00:45]} Qd7 {[%emt 0:00:32]} 7. a4 {[%emt 0:03:47]} Nc6 {[%emt 0:01:29]} 8. O-O {[%emt 0:00:19]} Nf6 {[%emt 0:01:09]} 9. Nb3 {[%emt 0:00:45]} a6 {[%emt 0:07:51]} 10. Nbxd4 {[%emt 0:03:34]} Nxd4 {[%emt 0:01:51]} 11. Qxd4 {[%emt 0:04:14]} Qxd4 {[%emt 0:01:51]} 12. Nxd4 {[%emt 0:00:02]} Bd7 {[%emt 0:12:13]} 13. c3 {[%emt 0:05:47]} Rc8 {[%emt 0:01:11]} 14. Be2 {[%emt 0:02:41]} e5 {[%emt 0:13:49]} 15. Nc2 {[%emt 0:02:24]} Bd6 {[%emt 0:08:38]} 16. Bg5 {[%emt 0:03:52]} Ke7 {[%emt 0:10:38]} 17. Ne3 {[%emt 0:03:28]} Be6 {[%emt 0:00:54]} 18. Bf3 {[%emt 0:03:32]} Rb8 {[%emt 0:01:08]} 19. Nd5+ {[%emt 0:10:38]} Bxd5 {[%emt 0:00:24]} 20. Bxd5 {[%emt 0:00:17]} h6 {[%emt 0:00:56]} 21. Bxf6+ {[%emt 0:00:07]} Kxf6 {[%emt 0:00:08]} 22. Rfd1 {[%emt 0:02:31]} Rhd8 {[%emt 0:01:39]} 1/2-1/2

[Event "41st Jacques-Lemans-Open 2022"]
[Site "St. Veit/Glan"]
[Date "2022.07.13"]
[Round "6.8"]
[White "Hoffmann, Sebastian"]
[Black "Kruckenhauser, Arthur"]
[Result "1-0"]
[ECO "A57"]
[WhiteElo "2148"]
[BlackElo "2303"]
[Annotator "ChessBase"]
[PlyCount "105"]
[EventDate "2022.07.09"]
[EventType "swiss"]
[EventCountry "AUT"]
[SourceTitle "playchess.com"]
[Source "ChessBase"]
[SourceQuality "1"]
[TimeControl "40/5400+30:1800+30"]

1. d4 {[%emt 0:00:03]} Nf6 {[%emt 0:01:23]} 2. c4 {[%emt 0:00:09]} c5 {[%emt 0:00:04]} 3. d5 {[%emt 0:00:07]} b5 {[%emt 0:00:04]} 4. Nf3 {[%emt 0:00:13]} b4 {[%emt 0:04:55]} 5. a3 {[%emt 0:00:06]} a5 {[%emt 0:01:52]} 6. axb4 {[%emt 0:04:20]} cxb4 {[%emt 0:00:16]} 7. Nbd2 {[%emt 0:00:11]} d6 {[%emt 0:01:27]} 8. e4 {[%emt 0:00:10]} g6 {[%emt 0:03:42]} 9. c5 {[%emt 0:00:06]} dxc5 {[%emt 0:06:22]} 10. Bb5+ {[%emt 0:00:05]} Bd7 {[%emt 0:04:33]} 11. Bc4 {[%emt 0:00:08]} Bg7 {[%emt 0:05:36]} 12. e5 {[%emt 0:10:47]} Ng4 {[%emt 0:07:55]} 13. Qe2 {[%emt 0:00:14]} O-O {[%emt 0:04:07]} 14. h3 {[%emt 0:06:52]} Nh6 {[%emt 0:00:20]} 15. Ne4 {[%emt 0:01:32]} Qc7 {[%emt 0:07:43]} 16. Bg5 {[%emt 0:09:30]} Nf5 {[%emt 0:06:17]} 17. g4 {[%emt 0:05:57]} Nd4 {[%emt 0:01:02]} 18. Nxd4 {[%emt 0:00:53]} cxd4 {[%emt 0:00:05]} 19. Bxe7 {[%emt 0:09:04]} Bxg4 {[%emt 0:10:28]} 20. d6 {[%emt 0:08:01]} Bxe2 {[%emt 0:04:52]} 21. dxc7 {[%emt 0:00:06]} Bxc4 {[%emt 0:05:48]} 22. Bxf8 {[%emt 0:17:03]} Nc6 {[%emt 0:10:47]} 23. Bxg7 {[%emt 0:00:21]} Kxg7 {[%emt 0:02:48]} 24. Nd6 {[%emt 0:02:02]} Be6 {[%emt 0:01:33]} 25. Kd2 {[%emt 0:04:49]} a4 {[%emt 0:01:52]} 26. Rhc1 {[%emt 0:01:30]} Ne7 {[%emt 0:00:13]} 27. Rc5 {[%emt 0:01:21]} a3 {[%emt 0:02:54]} 28. bxa3 {[%emt 0:02:56]} bxa3 {[%emt 0:00:03]} 29. Rb5 {[%emt 0:01:31]} Bxh3 {[%emt 0:02:29]} 30. Rb8 {[%emt 0:00:27]} Ra7 {[%emt 0:00:02]} 31. c8=Q {[%emt 0:00:47]} Nxc8 {[%emt 0:00:17]} 32. Nxc8 {[%emt 0:00:05]} Ra5 {[%emt 0:00:23]} 33. Nd6 {[%emt 0:04:55]} Rxe5 {[%emt 0:02:24]} 34. Rxa3 {[%emt 0:00:13]} Bg4 {[%emt 0:01:52]} 35. f3 {[%emt 0:02:40]} Be6 {[%emt 0:00:17]} 36. Rb7 {[%emt 0:01:20]} Rd5 {[%emt 0:00:51]} 37. Ne8+ {[%emt 0:02:59]} Kh6 {[%emt 0:00:04]} 38. Ra1 {[%emt 0:00:03]} Rf5 {[%emt 0:01:16]} 39. Rh1+ {[%emt 0:04:52]} Kg5 {[%emt 0:00:07]} 40. Rxh7 {[%emt 0:01:12]} Rxf3 {[%emt 0:00:51]} 41. Rb1 {[%emt 0:04:42]} Rf2+ {[%emt 0:00:12]} 42. Ke1 {[%emt 0:00:08]} Rg2 {[%emt 0:03:31]} 43. Kf1 {[%emt 0:00:39]} Ra2 {[%emt 0:00:17]} 44. Rd1 {[%emt 0:02:54]} d3 {[%emt 0:01:05]} 45. Kg1 {[%emt 0:03:42]} Ra8 {[%emt 0:07:58]} 46. Nc7 {[%emt 0:01:17]} Rd8 {[%emt 0:00:20]} 47. Nxe6+ {[%emt 0:00:11]} fxe6 {[%emt 0:00:03]} 48. Rh3 {[%emt 0:00:05]} e5 {[%emt 0:00:42]} 49. Rhxd3 {[%emt 0:00:59]} Re8 {[%emt 0:00:15]} 50. Rf1 {[%emt 0:00:15]} Kg4 {[%emt 0:00:25]} 51. Kg2 {[%emt 0:00:22]} g5 {[%emt 0:00:28]} 52. Rg3+ {[%emt 0:00:59]} Kh5 {[%emt 0:00:04]} 53. Rf5 {[%emt 0:00:23]} 1-0

[Event "41st Jacques-Lemans-Open 2022"]
[Site "St. Veit/Glan"]
[Date "2022.07.13"]
[Round "6.9"]
[White "Leitner, Gerald"]
[Black "Sandhoefner, Florian"]
[Result "1/2-1/2"]
[ECO "B20"]
[WhiteElo "2145"]
[BlackElo "2289"]
[Annotator "ChessBase"]
[PlyCount "87"]
[EventDate "2022.07.09"]
[EventType "swiss"]
[EventCountry "AUT"]
[SourceTitle "playchess.com"]
[Source "ChessBase"]
[SourceQuality "1"]
[TimeControl "40/5400+30:1800+30"]

1. e4 {[%emt 0:00:02]} c5 {[%emt 0:00:09]} 2. Ne2 {[%emt 0:00:02]} Nf6 {[%emt 0:00:06]} 3. Nbc3 {[%emt 0:00:27]} d5 {[%emt 0:00:48]} 4. exd5 {[%emt 0:00:24]} Nxd5 {[%emt 0:00:04]} 5. Nxd5 {[%emt 0:00:23]} Qxd5 {[%emt 0:00:01]} 6. d4 {[%emt 0:11:06]} e5 {[%emt 0:02:30]} 7. dxe5 {[%emt 0:00:09]} Qxe5 {[%emt 0:00:13]} 8. c3 {[%emt 0:14:53]} Nc6 {[%emt 0:03:34]} 9. Be3 {[%emt 0:04:27]} Be7 {[%emt 0:04:43]} 10. Nf4 {[%emt 0:06:23]} O-O {[%emt 0:05:51]} 11. Bb5 {[%emt 0:09:52]} Nd4 {[%emt 0:10:37]} 12. Bd3 {[%emt 0:01:38]} Nf5 {[%emt 0:04:21]} 13. Bxf5 {[%emt 0:07:11]} Bxf5 {[%emt 0:03:32]} 14. Qd5 {[%emt 0:00:57]} Qxd5 {[%emt 0:02:30]} 15. Nxd5 {[%emt 0:00:20]} Bd6 {[%emt 0:00:08]} 16. O-O-O {[%emt 0:03:55]} Rfd8 {[%emt 0:01:48]} 17. c4 {[%emt 0:01:31]} Bf8 {[%emt 0:05:57]} 18. Rd2 {[%emt 0:03:01]} f6 {[%emt 0:03:13]} 19. Rhd1 {[%emt 0:01:29]} Kf7 {[%emt 0:00:31]} 20. b3 {[%emt 0:07:32]} Rd7 {[%emt 0:02:08]} 21. f3 {[%emt 0:05:57]} Rad8 {[%emt 0:03:39]} 22. Nc3 {[%emt 0:01:29]} Rxd2 {[%emt 0:01:31]} 23. Rxd2 {[%emt 0:00:01]} Rxd2 {[%emt 0:00:16]} 24. Kxd2 {[%emt 0:00:00]} Ke6 {[%emt 0:00:42]} 25. Nb5 {[%emt 0:00:23]} a6 {[%emt 0:00:44]} 26. Nc3 {[%emt 0:00:14]} Kd7 {[%emt 0:00:26]} 27. h3 {[%emt 0:03:27]} Kc6 {[%emt 0:00:30]} 28. g4 {[%emt 0:01:12]} Be6 {[%emt 0:01:53]} 29. Ne4 {[%emt 0:00:12]} b5 {[%emt 0:00:57]} 30. Kd3 {[%emt 0:00:29]} h6 {[%emt 0:01:10]} 31. Ng3 {[%emt 0:02:01]} g6 {[%emt 0:01:57]} 32. Ne4 {[%emt 0:08:35]} f5 {[%emt 0:02:16]} 33. Ng3 {[%emt 0:01:13]} Bd6 {[%emt 0:02:49]} 34. gxf5 {[%emt 0:00:54]} gxf5 {[%emt 0:00:13]} 35. Ne2 {[%emt 0:00:58]} h5 {[%emt 0:07:07]} 36. Bf4 {[%emt 0:02:29]} Be7 {[%emt 0:01:01]} 37. Be5 {[%emt 0:00:40]} f4 {[%emt 0:04:35]} 38. cxb5+ {[%emt 0:00:59]} Kxb5 {[%emt 0:02:53]} 39. Nxf4 {[%emt 0:00:04]} Bf5+ {[%emt 0:00:16]} 40. Kc3 {[%emt 0:00:10]} h4 {[%emt 0:00:43]} 41. a3 {[%emt 0:05:17]} Bg5 {[%emt 0:01:52]} 42. a4+ {[%emt 0:02:45]} Kc6 {[%emt 0:00:37]} 43. Kb2 Kb7 {[%emt 0:04:38]} 44. Kc3 {[%emt 0:00:37]} 1/2-1/2

[Event "41st Jacques-Lemans-Open 2022"]
[Site "St. Veit/Glan"]
[Date "2022.07.13"]
[Round "6.10"]
[White "Ernst, Robert"]
[Black "Vojinov, Danijel"]
[Result "0-1"]
[ECO "E42"]
[WhiteElo "2001"]
[BlackElo "2201"]
[Annotator "ChessBase"]
[PlyCount "72"]
[EventDate "2022.07.09"]
[EventType "swiss"]
[EventCountry "AUT"]
[SourceTitle "playchess.com"]
[Source "ChessBase"]
[SourceQuality "1"]
[TimeControl "40/5400+30:1800+30"]

1. d4 {[%emt 0:00:04]} Nf6 {[%emt 0:00:30]} 2. c4 {[%emt 0:00:16]} e6 {[%emt 0:00:50]} 3. Nc3 {[%emt 0:00:17]} Bb4 {[%emt 0:01:09]} 4. e3 {[%emt 0:00:17]} c5 {[%emt 0:01:09]} 5. Nge2 {[%emt 0:02:44]} b6 {[%emt 0:04:12]} 6. a3 {[%emt 0:03:05]} Ba5 {[%emt 0:01:28]} 7. Bd2 {[%emt 0:23:08]} O-O {[%emt 0:08:12]} 8. Rb1 {[%emt 0:07:49]} cxd4 {[%emt 0:05:38]} 9. Nxd4 {[%emt 0:04:07]} Bxc3 {[%emt 0:03:15]} 10. Bxc3 {[%emt 0:00:00]} Ne4 {[%emt 0:01:37]} 11. Qc2 {[%emt 0:00:27]} Bb7 {[%emt 0:03:00]} 12. Bd3 {[%emt 0:02:37]} f5 {[%emt 0:02:43]} 13. O-O {[%emt 0:02:55]} Na6 {[%emt 0:06:09]} 14. b4 {[%emt 0:01:02]} Nxc3 {[%emt 0:05:06]} 15. Qxc3 {[%emt 0:00:12]} Qg5 {[%emt 0:01:33]} 16. g3 {[%emt 0:01:19]} Nc7 {[%emt 0:01:46]} 17. f4 {[%emt 0:04:24]} Qf6 {[%emt 0:02:06]} 18. Ne2 {[%emt 0:04:49]} Qe7 {[%emt 0:01:00]} 19. Qd4 {[%emt 0:02:09]} Rac8 {[%emt 0:03:55]} 20. e4 {[%emt 0:04:03]} fxe4 {[%emt 0:01:23]} 21. Bxe4 {[%emt 0:00:01]} Bxe4 {[%emt 0:00:40]} 22. Qxe4 {[%emt 0:00:02]} Ne8 {[%emt 0:01:27]} 23. Qd4 {[%emt 0:03:42]} Nd6 {[%emt 0:02:00]} 24. Rbd1 {[%emt 0:01:29]} Nxc4 {[%emt 0:02:35]} 25. Qxd7 {[%emt 0:00:46]} Qf6 {[%emt 0:02:32]} 26. Nd4 {[%emt 0:24:12]} Rfe8 {[%emt 0:22:53]} 27. Nc2 {[%emt 0:01:22]} Nb2 {[%emt 0:02:48]} 28. Rc1 {[%emt 0:02:13]} Red8 {[%emt 0:01:28]} 29. Qb5 {[%emt 0:00:14]} Qc3 {[%emt 0:01:25]} 30. Qe2 {[%emt 0:02:22]} Nd3 {[%emt 0:04:21]} 31. Rf3 {[%emt 0:00:01]} Qb2 {[%emt 0:00:49]} 32. Rd1 {[%emt 0:01:58]} Rxc2 {[%emt 0:00:55]} 33. Qxe6+ {[%emt 0:00:56]} Kh8 {[%emt 0:00:23]} 34. Rdxd3 {[%emt 0:00:01]} Rc1+ {[%emt 0:00:28]} 35. Rf1 {[%emt 0:00:02]} Rxf1+ {[%emt 0:00:09]} 36. Kxf1 {[%emt 0:00:02]} Qb1+ {[%emt 0:00:10]} 0-1

[Event "41st Jacques-Lemans-Open 2022"]
[Site "St. Veit/Glan"]
[Date "2022.07.14"]
[Round "6.11"]
[White "Lerch, Johannes"]
[Black "Schwab, Rene"]
[Result "0-1"]
[ECO "A04"]
[WhiteElo "2222"]
[BlackElo "2124"]
[Annotator "ChessBase"]
[PlyCount "190"]
[EventDate "2022.07.09"]
[EventType "swiss"]
[EventCountry "AUT"]
[SourceTitle "playchess.com"]
[Source "ChessBase"]
[SourceQuality "1"]
[TimeControl "40/5400+30:1800+30"]

1. Nf3 {[%emt 0:00:04]} c6 {[%emt 0:00:04]} 2. c4 {[%emt 0:00:04]} d5 {[%emt 0:00:05]} 3. e3 {[%emt 0:00:06]} a6 {[%emt 0:04:50]} 4. Nc3 {[%emt 0:01:02]} Nf6 {[%emt 0:01:58]} 5. b3 {[%emt 0:03:01]} Bg4 {[%emt 0:00:23]} 6. Be2 {[%emt 0:06:24]} e6 {[%emt 0:02:07]} 7. O-O {[%emt 0:00:42]} Nbd7 {[%emt 0:01:06]} 8. d4 {[%emt 0:03:30]} Bb4 {[%emt 0:00:43]} 9. Bb2 {[%emt 0:02:02]} Qa5 {[%emt 0:01:02]} 10. Qc2 {[%emt 0:01:46]} Ba3 {[%emt 0:06:42]} 11. Rfe1 {[%emt 0:07:09]} Rd8 {[%emt 0:18:07]} 12. Rad1 {[%emt 0:12:03]} Bd6 {[%emt 0:04:03]} 13. h3 {[%emt 0:02:40]} Bf5 {[%emt 0:07:02]} 14. Bd3 {[%emt 0:01:42]} Bxd3 {[%emt 0:02:17]} 15. Qxd3 {[%emt 0:02:08]} Bb4 {[%emt 0:00:49]} 16. Re2 {[%emt 0:04:46]} O-O {[%emt 0:04:30]} 17. a3 {[%emt 0:15:17]} Be7 {[%emt 0:02:36]} 18. b4 {[%emt 0:01:10]} dxc4 {[%emt 0:04:17]} 19. Qxc4 {[%emt 0:00:36]} Qh5 {[%emt 0:00:10]} 20. e4 {[%emt 0:02:34]} e5 {[%emt 0:02:14]} 21. d5 {[%emt 0:10:39]} Nb6 {[%emt 0:02:00]} 22. Qb3 {[%emt 0:00:19]} cxd5 {[%emt 0:02:34]} 23. exd5 {[%emt 0:00:35]} Bd6 {[%emt 0:01:54]} 24. Rde1 {[%emt 0:01:39]} e4 {[%emt 0:05:27]} 25. Nxe4 {[%emt 0:00:18]} Nxe4 {[%emt 0:00:15]} 26. Rxe4 {[%emt 0:00:05]} Qxd5 {[%emt 0:01:06]} 27. Qc3 {[%emt 0:03:34]} f6 {[%emt 0:00:35]} 28. Rd4 {[%emt 0:06:30]} Qf7 {[%emt 0:01:22]} 29. Qd3 {[%emt 0:02:06]} Bc7 {[%emt 0:04:39]} 30. Rd1 {[%emt 0:04:14]} Rxd4 {[%emt 0:03:09]} 31. Qxd4 {[%emt 0:00:07]} Nc4 {[%emt 0:01:18]} 32. Qc3 {[%emt 0:03:06]} b5 {[%emt 0:01:59]} 33. Bc1 {[%emt 0:02:24]} Re8 {[%emt 0:00:56]} 34. Qd3 {[%emt 0:01:24]} Qe7 {[%emt 0:02:07]} 35. Kf1 {[%emt 0:01:01]} Rd8 {[%emt 0:01:13]} 36. Qe2 {[%emt 0:00:12]} Qxe2+ {[%emt 0:01:59]} 37. Kxe2 {[%emt 0:00:02]} Rxd1 {[%emt 0:00:12]} 38. Kxd1 {[%emt 0:00:00]} Bb6 {[%emt 0:01:05]} 39. Ke2 {[%emt 0:00:23]} Kf7 {[%emt 0:00:16]} 40. Nd2 {[%emt 0:02:32]} Nxd2 {[%emt 0:00:42]} 41. Bxd2 {[%emt 0:01:09]} Ke6 {[%emt 0:01:14]} 42. f3 {[%emt 0:04:53]} Kd5 {[%emt 0:00:16]} 43. Kd3 {[%emt 0:00:06]} Bd4 {[%emt 0:00:44]} 44. Bc1 {[%emt 0:01:06]} Be5 {[%emt 0:01:12]} 45. Bd2 {[%emt 0:02:01]} Bb2 {[%emt 0:00:36]} 46. Kc2 {[%emt 0:00:11]} Bd4 {[%emt 0:00:08]} 47. Kd3 {[%emt 0:00:16]} h5 {[%emt 0:01:42]} 48. g4 {[%emt 0:04:25]} g6 {[%emt 0:03:26]} 49. Bc1 {[%emt 0:01:07]} f5 {[%emt 0:01:09]} 50. Bd2 {[%emt 0:03:19]} Bb2 {[%emt 0:01:37]} 51. Kc2 {[%emt 0:00:14]} Be5 {[%emt 0:02:45]} 52. Kd3 {[%emt 0:00:15]} Ke6 {[%emt 0:00:39]} 53. Be3 {[%emt 0:04:07]} Bb2 {[%emt 0:00:52]} 54. Kc2 {[%emt 0:00:11]} Bf6 {[%emt 0:00:12]} 55. Kd3 {[%emt 0:00:38]} Bd8 {[%emt 0:00:51]} 56. Bd2 {[%emt 0:03:33]} Ke5 {[%emt 0:00:39]} 57. Bc1 {[%emt 0:00:44]} Bb6 {[%emt 0:01:21]} 58. gxh5 {[%emt 0:03:46]} gxh5 {[%emt 0:00:08]} 59. Be3 {[%emt 0:01:52]} Bc7 {[%emt 0:00:59]} 60. Bd2 {[%emt 0:00:46]} Kd5 {[%emt 0:00:12]} 61. Be3 {[%emt 0:00:24]} Be5 {[%emt 0:00:19]} 62. Bc1 {[%emt 0:00:21]} Bf6 {[%emt 0:01:13]} 63. Bd2 {[%emt 0:00:18]} Ke6 {[%emt 0:01:41]} 64. Be3 {[%emt 0:01:25]} Bb2 {[%emt 0:02:21]} 65. Kc2 {[%emt 0:00:07]} Ba1 {[%emt 0:01:19]} 66. Kd3 {[%emt 0:00:15]} Ke5 {[%emt 0:00:15]} 67. Bh6 {[%emt 0:01:16]} Kd5 {[%emt 0:00:04]} 68. Bd2 {[%emt 0:00:15]} Be5 {[%emt 0:00:27]} 69. Bc1 {[%emt 0:01:59]} Bc7 {[%emt 0:00:08]} 70. Bd2 {[%emt 0:00:30]} Bd8 {[%emt 0:00:04]} 71. Bc1 {[%emt 0:00:33]} a5 {[%emt 0:00:09]} 72. bxa5 {[%emt 0:00:41]} Bxa5 {[%emt 0:00:05]} 73. Be3 {[%emt 0:01:50]} Ke5 {[%emt 0:02:11]} 74. Bc1 {[%emt 0:00:47]} Bb6 {[%emt 0:00:27]} 75. Be3 {[%emt 0:00:26]} Bd8 {[%emt 0:01:05]} 76. Bd2 {[%emt 0:00:57]} Be7 {[%emt 0:00:28]} 77. Bc1 {[%emt 0:00:04]} Bc5 {[%emt 0:02:46]} 78. Kc3 {[%emt 0:00:26]} Be7 {[%emt 0:02:00]} 79. Kd3 {[%emt 0:00:10]} Bd6 {[%emt 0:01:04]} 80. Kc3 {[%emt 0:00:18]} Bc5 {[%emt 0:00:08]} 81. Kd3 {[%emt 0:01:21]} f4 {[%emt 0:00:15]} 82. Bb2+ {[%emt 0:00:53]} Kf5 {[%emt 0:00:08]} 83. Bc1 {[%emt 0:00:20]} Kg5 {[%emt 0:00:28]} 84. Ke4 {[%emt 0:00:45]} Kh4 {[%emt 0:06:29]} 85. Kxf4 {[%emt 0:00:51]} Kxh3 {[%emt 0:00:34]} 86. Ke4 {[%emt 0:00:27]} Be7 {[%emt 0:01:35]} 87. Kd5 {[%emt 0:00:53]} Kg3 {[%emt 0:00:45]} 88. Ke6 {[%emt 0:00:21]} Bf8 {[%emt 0:01:17]} 89. Bb2 {[%emt 0:00:58]} h4 {[%emt 0:01:01]} 90. Kd5 {[%emt 0:00:14]} Kxf3 {[%emt 0:00:25]} 91. Kc6 {[%emt 0:00:39]} h3 {[%emt 0:00:25]} 92. Be5 {[%emt 0:00:06]} Bxa3 {[%emt 0:00:14]} 93. Kxb5 {[%emt 0:00:06]} Bc1 {[%emt 0:00:24]} 94. Bh2 {[%emt 0:00:07]} Bf4 {[%emt 0:00:12]} 95. Bg1 {[%emt 0:00:02]} Kg2 {[%emt 0:00:13]} 0-1

[Event "41st Jacques-Lemans-Open 2022"]
[Site "St. Veit/Glan"]
[Date "2022.07.13"]
[Round "6.12"]
[White "Hofstadler, Mario"]
[Black "Gschiel, Alexander"]
[Result "0-1"]
[ECO "E06"]
[WhiteElo "2123"]
[BlackElo "2215"]
[Annotator "ChessBase"]
[PlyCount "78"]
[EventDate "2022.07.09"]
[EventType "swiss"]
[EventCountry "AUT"]
[SourceTitle "playchess.com"]
[Source "ChessBase"]
[SourceQuality "1"]
[TimeControl "40/5400+30:1800+30"]

1. d4 {[%emt 0:00:26]} d5 {[%emt 0:00:17]} 2. c4 {[%emt 0:00:22]} e6 {[%emt 0:00:19]} 3. Nf3 {[%emt 0:01:34]} Nf6 {[%emt 0:00:22]} 4. g3 {[%emt 0:00:12]} Be7 {[%emt 0:00:34]} 5. Bg2 {[%emt 0:00:10]} O-O {[%emt 0:00:24]} 6. O-O {[%emt 0:00:06]} c6 {[%emt 0:00:42]} 7. Qc2 {[%emt 0:00:24]} b6 {[%emt 0:00:40]} 8. Rd1 {[%emt 0:06:59]} Nbd7 {[%emt 0:02:10]} 9. b3 {[%emt 0:06:28]} Ba6 {[%emt 0:04:34]} 10. Nbd2 {[%emt 0:03:07]} c5 {[%emt 0:07:28]} 11. e3 {[%emt 0:23:32]} Rc8 {[%emt 0:06:30]} 12. dxc5 {[%emt 0:04:30]} Rxc5 {[%emt 0:12:45]} 13. Bb2 {[%emt 0:06:23]} dxc4 {[%emt 0:04:03]} 14. bxc4 {[%emt 0:00:33]} Rc7 {[%emt 0:05:59]} 15. Qd3 {[%emt 0:09:05]} Qc8 {[%emt 0:03:30]} 16. Rac1 {[%emt 0:00:20]} Rd8 {[%emt 0:05:21]} 17. Qe2 {[%emt 0:01:10]} Nf8 {[%emt 0:07:42]} 18. Bf1 {[%emt 0:10:37]} Ng6 {[%emt 0:04:49]} 19. Re1 {[%emt 0:11:09]} Rcd7 {[%emt 0:08:51]} 20. Nb3 {[%emt 0:01:49]} Ne4 {[%emt 0:04:41]} 21. Rc2 {[%emt 0:00:54]} Bb7 {[%emt 0:02:57]} 22. Rec1 {[%emt 0:01:03]} Nc5 {[%emt 0:01:23]} 23. Nxc5 {[%emt 0:04:04]} Bxc5 {[%emt 0:00:01]} 24. Bg2 {[%emt 0:00:27]} Be4 {[%emt 0:01:49]} 25. Nd4 {[%emt 0:02:14]} Bxc2 {[%emt 0:01:22]} 26. Qxc2 {[%emt 0:00:06]} Rd6 {[%emt 0:03:17]} 27. h4 {[%emt 0:00:32]} e5 {[%emt 0:00:38]} 28. Nb5 {[%emt 0:00:34]} Rd2 {[%emt 0:00:26]} 29. Qb3 {[%emt 0:00:31]} Qf5 {[%emt 0:01:04]} 30. Rf1 {[%emt 0:00:56]} R8d3 {[%emt 0:01:50]} 31. Bc3 {[%emt 0:00:40]} Re2 {[%emt 0:02:59]} 32. Qb1 {[%emt 0:01:17]} e4 {[%emt 0:01:53]} 33. Nd4 {[%emt 0:01:08]} Bxd4 {[%emt 0:00:01]} 34. Bxd4 {[%emt 0:00:10]} Ne5 {[%emt 0:01:45]} 35. Bxe5 {[%emt 0:01:40]} Qxe5 {[%emt 0:00:13]} 36. Qb4 {[%emt 0:01:53]} Rdd2 {[%emt 0:01:34]} 37. Qa4 {[%emt 0:00:23]} Rxa2 {[%emt 0:01:18]} 38. Qc6 {[%emt 0:00:04]} g6 {[%emt 0:00:17]} 39. Bxe4 {[%emt 0:00:15]} Rxf2 {[%emt 0:00:23]} 0-1